bitfinex-derivatives/quotes_SOLF0:USTF0_20241211
["timestamp","ask_amount","ask_price","bid_price","bid_amount"]
[1733912580898,2.04,223.42,223.33,2.2382]
[1733912581094,2.04,223.42,223.31,5.39830203]
[1733912581497,2.04,223.42,223.32,3.66177251]
[1733912581704,2.04,223.42,223.33,3.66177251]
[1733912581905,10.61244344,223.4,223.31,5.39830203]
[1733912582200,10.61244344,223.4,223.32,3.66243297]
[1733912582400,10.61244344,223.4,223.31,5.39830203]
[1733912583097,10.61244344,223.4,223.32,3.66244129]
[1733912583295,2.2382,223.34,223.31,5.39830203]
[1733912583493,2.04,223.33,223.32,3.66245352]
[1733912583698,2.04,223.33,223.31,5.39830203]
[1733912584397,4.2782,223.33,223.31,5.39830203]
[1733912584593,2.04,223.33,223.25,10.61244344]
[1733912584795,2.04,223.33,223.26,3.66381954]
[1733912584995,4.2782,223.33,223.28,2.2387]
[1733912585200,4.2782,223.33,223.29,3.66381954]
[1733912585394,4.2782,223.33,223.3,3.66381954]
[1733912585594,4.2782,223.33,223.31,3.66381954]
[1733912585895,4.2782,223.33,223.28,2.2387]
[1733912586294,4.2782,223.33,223.29,3.6642197]
[1733912586503,4.2782,223.33,223.3,3.6642197]
[1733912586703,4.2782,223.33,223.31,3.6642197]
[1733912586907,4.2782,223.33,223.28,2.2387]
[1733912587097,4.2782,223.33,223.29,3.66406279]
[1733912587305,4.2782,223.33,223.3,9.15826069]
[1733912587600,2.04,223.33,223.31,3.66406279]
[1733912587806,2.04,223.33,223.32,3.66422503]
[1733912588105,2.04,223.33,223.32,5.90252503]
[1733912588406,6.77671457,223.41,223.32,3.66422503]
[1733912588607,6.77671457,223.41,223.33,10.4409396]
[1733912588808,4.2776,223.4,223.35,2.238]
[1733912589006,4.2776,223.4,223.36,3.66422503]
[1733912589205,4.2776,223.4,223.36,2.2379]
[1733912589510,4.2776,223.4,223.3,5.4941979]
[1733912589511,2.04,223.4,223.35,6.77671457]
[1733912590009,2.04,223.4,223.37,2.2377]
[1733912590811,2.04,223.4,223.35,6.77671457]
[1733912591213,2.04,223.4,223.32,10.5806446]
[1733912591414,2.04,223.4,223.33,3.66338777]
[1733912591607,2.04,223.4,223.34,3.66338777]
[1733912591813,2.04,223.4,223.35,3.66338777]
[1733912592014,2.04,223.4,223.32,10.5806446]
[1733912592417,2.04,223.4,223.33,3.66309287]
[1733912592617,2.04,223.4,223.34,3.66309287]
[1733912592817,2.04,223.4,223.35,3.66309287]
[1733912593118,2.04,223.4,223.36,3.66309287]
[1733912593318,2.04,223.4,223.32,10.5806446]
[1733912593518,2.04,223.4,223.33,3.66316648]
[1733912593719,2.04,223.4,223.35,2.238]
[1733912593917,2.04,223.4,223.36,3.66316648]
[1733912594219,72.35808241,223.44,223.38,2.2376]
[1733912594414,48.0521,223.51,223.35,10.5806446]
[1733912594615,2.04,223.5,223.38,10.5806446]
[1733912594919,2.04,223.5,223.39,3.66211203]
[1733912595114,2.04,223.5,223.4,3.66211203]
[1733912595322,2.2368,223.48,223.42,2.2372]
[1733912595514,2.2368,223.48,223.38,10.5806446]
[1733912595515,2.04,223.47,223.38,10.5806446]
[1733912595715,10.5806446,223.53,223.38,10.5806446]
[1733912595922,2.2366,223.5,223.44,2.237]
[1733912596823,2.2365,223.51,223.45,2.237]
[1733912597922,2.04,223.52,223.46,2.2369]
[1733912597923,4.2763,223.52,223.46,2.2369]
[1733912598219,4.2763,223.52,223.39,2.7831]
[1733912598220,2.04,223.52,223.39,2.7831]
[1733912598426,2.2368,223.48,223.41,2.2374]
[1733912598627,2.04,223.47,223.42,3.65313405]
[1733912598822,2.04,223.47,223.41,2.2374]
[1733912599319,2.2369,223.46,223.42,3.65391178]
[1733912600024,2.04,223.47,223.42,3.65391178]
[1733912602025,2.04,223.47,223.43,5.43328446]
[1733912603316,2.237,223.46,223.43,5.43328446]
[1733912604320,2.04,223.47,223.42,3.65391178]
[1733912605216,2.2372,223.43,223.42,3.65391178]
[1733912605623,2.2371,223.44,223.42,3.65391178]
[1733912605823,2.04,223.47,223.42,3.65391178]
[1733912606724,2.04,223.47,223.42,5.89121178]
[1733912607323,2.237,223.46,223.42,3.65391178]
[1733912607528,2.04,223.47,223.42,3.65391178]
[1733912608924,2.2372,223.43,223.42,3.65391178]
[1733912609626,12.6206446,223.47,223.35,10.5806446]
[1733912609836,2.2374,223.41,223.37,2.2378]
[1733912610030,2.04,223.4,223.37,2.2378]
[1733912612038,2.04,223.4,223.36,9.00899153]
[1733912612537,2.04,223.4,223.38,5.31173992]
[1733912614235,2.04,223.4,223.29,1.4402]
[1733912614435,6.77109153,223.39,223.31,6.77109153]
[1733912614636,9.00889153,223.37,223.32,3.64688881]
[1733912614836,6.77109153,223.37,223.33,3.64688881]
[1733912615136,6.77109153,223.37,223.3,2.2385]
[1733912615137,6.77109153,223.37,223.29,6.77109153]
[1733912615633,6.77109153,223.37,223.3,3.64895978]
[1733912615839,2.04,223.4,223.32,5.40963551]
[1733912615840,2.2382,223.34,223.32,5.40963551]
[1733912616034,2.04,223.33,223.32,5.40963551]
[1733912617738,2.04,223.33,223.32,7.64793551]
[1733912618138,2.04,223.33,223.32,11.29611207]
[1733912618336,2.04,223.33,223.32,11.29611552]
[1733912618741,2.04,223.33,223.32,14.94451634]
[1733912619041,2.04,223.33,223.32,11.29633633]
[1733912619643,2.04,223.33,223.32,7.64793551]
[1733912620334,2.04,223.33,223.32,11.29786618]
[1733912621640,2.04,223.33,223.32,7.64793551]
[1733912621841,2.04,223.33,223.32,11.29834032]
[1733912627549,4.22,223.49,223.32,9.06004032]
[1733912627748,4.22,223.49,223.36,6.77109153]
[1733912627749,6.77109153,223.43,223.36,6.77109153]
[1733912628042,2.04,223.42,223.36,6.77109153]
[1733912628247,2.04,223.42,223.37,3.64988705]
[1733912628447,2.04,223.42,223.38,2.2377]
[1733912628648,2.04,223.42,223.37,3.64988705]
[1733912628846,2.04,223.42,223.38,3.64966611]
[1733912629248,2.04,223.42,223.39,3.64966611]
[1733912629447,2.04,223.42,223.36,6.77109153]
[1733912629647,2.04,223.42,223.37,3.64967475]
[1733912629847,2.2374,223.41,223.38,3.64967475]
[1733912630048,9.00849153,223.41,223.35,6.77109153]
[1733912630243,9.00849153,223.41,223.36,3.65097071]
[1733912630448,2.2375,223.4,223.37,3.65097071]
[1733912630757,2.2375,223.4,223.35,9.00909153]
[1733912630947,2.2375,223.4,223.36,3.65145783]
[1733912631250,2.2375,223.4,223.35,9.00909153]
[1733912631251,2.2375,223.4,223.37,3.65225802]
[1733912631453,2.2375,223.4,223.35,9.00909153]
[1733912631756,2.2374,223.41,223.36,3.65215996]
[1733912631944,2.2374,223.41,223.37,3.65215996]
[1733912632143,2.2374,223.41,223.38,3.65275085]
[1733912632456,2.2374,223.41,223.36,2.2379]
[1733912632656,2.2374,223.41,223.37,3.65277508]
[1733912632851,2.2374,223.41,223.38,3.65277508]
[1733912633054,2.2374,223.41,223.36,2.2379]
[1733912633255,2.2374,223.41,223.37,3.65337304]
[1733912633450,2.2374,223.41,223.36,2.2379]
[1733912633451,2.2374,223.41,223.38,3.65337304]
[1733912633650,2.04,223.42,223.36,2.2379]
[1733912633851,2.2376,223.4,223.37,3.65367074]
[1733912634052,2.2376,223.4,223.35,9.00909153]
[1733912634248,2.2376,223.4,223.36,3.65471336]
[1733912634457,2.2376,223.4,223.37,3.65471336]
[1733912634653,6.77109153,223.41,223.33,10.93039153]
[1733912634955,2.238,223.36,223.34,3.65499466]
[1733912635158,2.04,223.36,223.35,3.65499466]
[1733912637950,2.04,223.36,223.35,3.65591266]
[1733912638155,2.04,223.36,223.32,5.40963551]
[1733912638459,2.04,223.36,223.33,3.65592429]
[1733912638856,2.04,223.36,223.34,3.65592429]
[1733912639153,4.2779,223.36,223.35,3.65592429]
[1733912639355,8.81109153,223.36,223.32,5.40963551]
[1733912639554,8.81109153,223.36,223.33,3.65662015]
[1733912639758,2.238,223.35,223.34,3.65662015]
[1733912639954,8.81109153,223.36,223.27,10.83759153]
[1733912640168,6.77109153,223.34,223.28,3.65729375]
[1733912640360,6.77109153,223.32,223.29,3.65729375]
[1733912640560,6.77109153,223.32,223.25,56.96808119]
[1733912640561,2.04,223.31,223.3,3.65729375]
[1733912641857,4.4735,223.48,223.3,9.16437534]
[1733912642062,4.4735,223.48,223.31,5.89569375]
[1733912642063,2.238,223.36,223.31,5.89569375]
[1733912642259,2.04,223.35,223.32,3.65729375]
[1733912642459,2.04,223.35,223.33,3.65729375]
[1733912642662,2.04,223.35,223.31,2.2384]
[1733912642957,2.04,223.35,223.32,3.65658848]
[1733912643162,2.04,223.35,223.33,3.65658848]
[1733912643361,2.04,223.35,223.34,3.65658848]
[1733912643564,2.04,223.35,223.31,6.77109153]
[1733912643766,2.04,223.35,223.34,3.6565215]
[1733912644364,2.04,223.35,223.34,5.8946215]
[1733912644668,2.04,223.35,223.34,3.6565215]
[1733912647756,2.04,223.35,223.34,5.8946215]
[1733912648868,2.04,223.35,223.34,3.6565215]
[1733912650065,2.04,223.35,223.32,2.2382]
[1733912650267,2.04,223.35,223.34,3.65779903]
[1733912651961,9.00869153,223.39,223.34,3.65779903]
[1733912652261,2.04,223.38,223.35,3.65779903]
[1733912652462,2.04,223.38,223.36,3.65779903]
[1733912652664,2.04,223.38,223.37,3.65779903]
[1733912653165,2.04,223.38,223.37,5.89559903]
[1733912653363,2.04,223.38,223.37,2.2378]
[1733912653558,2.04,223.38,223.37,5.89663792]
[1733912653761,6.77109153,223.43,223.37,3.65883792]
[1733912653957,2.04,223.42,223.38,3.65883792]
[1733912654165,2.04,223.42,223.39,3.65883792]
[1733912654365,2.04,223.42,223.4,3.65883792]
[1733912654567,2.04,223.42,223.37,2.2377]
[1733912654866,2.04,223.42,223.38,3.65677278]
[1733912655066,2.04,223.42,223.39,3.65677278]
[1733912655257,2.04,223.42,223.4,3.65677278]
[1733912655457,2.04,223.42,223.38,2.2376]
[1733912655659,2.04,223.42,223.39,3.65659706]
[1733912655864,2.04,223.42,223.4,3.65659706]
[1733912656066,2.04,223.42,223.36,6.77109153]
[1733912656261,2.04,223.42,223.4,2.2375]
[1733912656865,2.237,223.45,223.41,3.65622322]
[1733912657064,8.81109153,223.44,223.41,3.65622322]
[1733912657258,72.34150373,223.49,223.42,3.65642841]
[1733912657460,11.04789153,223.48,223.43,3.65642841]
[1733912657664,2.04,223.5,223.44,10.42500319]
[1733912657871,2.04,223.5,223.45,3.65391166]
[1733912658061,2.04,223.5,223.46,3.65391166]
[1733912658259,2.04,223.5,223.44,6.77109153]
[1733912658466,2.04,223.5,223.45,3.65150863]
[1733912658771,2.04,223.5,223.47,2.2368]
[1733912659268,54.77282,223.52,223.47,2.2368]
[1733912660860,2.2365,223.51,223.47,2.2368]
[1733912661060,6.77109153,223.49,223.41,1.4484]
[1733912661367,6.77109153,223.49,223.42,3.64982845]
[1733912661569,6.77109153,223.49,223.43,3.64982845]
[1733912661768,6.77109153,223.49,223.44,3.64982845]
[1733912662067,2.2367,223.48,223.45,3.64982845]
[1733912662267,8.81109153,223.47,223.39,6.77109153]
[1733912662464,2.04,223.46,223.4,3.64872969]
[1733912662663,2.04,223.46,223.41,3.64872969]
[1733912662867,8.81109153,223.46,223.42,3.64872969]
[1733912663076,8.81109153,223.46,223.39,6.77109153]
[1733912663364,8.81109153,223.46,223.4,3.64929822]
[1733912663561,2.237,223.45,223.41,3.64929822]
[1733912663765,2.237,223.45,223.4,2.2375]
[1733912663766,2.237,223.45,223.42,3.64929822]
[1733912663970,2.237,223.45,223.4,2.2375]
[1733912664169,2.237,223.45,223.41,3.64984832]
[1733912664370,2.237,223.45,223.4,2.2375]
[1733912664568,2.237,223.45,223.41,3.64523207]
[1733912664768,2.237,223.45,223.4,2.2375]
[1733912665070,2.237,223.45,223.41,3.64487843]
[1733912665269,2.237,223.45,223.4,2.2375]
[1733912665463,2.237,223.45,223.41,3.64501854]
[1733912665769,2.237,223.45,223.42,5.41736998]
[1733912666371,8.81109153,223.46,223.42,5.41736998]
[1733912666372,2.04,223.46,223.42,7.65456998]
[1733912666671,2.04,223.46,223.42,5.41736998]
[1733912666864,2.04,223.46,223.43,3.64363076]
[1733912667065,2.04,223.46,223.44,3.64363076]
[1733912667267,2.04,223.46,223.43,2.2372]
[1733912667463,2.04,223.46,223.44,3.64339703]
[1733912667664,11.04799153,223.46,223.42,7.65466998]
[1733912667869,8.81109153,223.46,223.43,3.64358744]
[1733912668174,8.81109153,223.46,223.42,5.41736998]
[1733912668368,6.77109153,223.44,223.29,6.20426479]
[1733912668574,6.77109153,223.42,223.36,3.64544162]
[1733912668873,4.2775,223.41,223.37,3.64544162]
[1733912669073,4.2775,223.41,223.38,3.64544162]
[1733912669274,4.2775,223.41,223.39,3.64544162]
[1733912669476,4.2775,223.41,223.36,2.2379]
[1733912669672,2.04,223.41,223.37,3.64671006]
[1733912669873,2.2376,223.4,223.38,3.64671006]
[1733912670074,2.04,223.41,223.3,2.8512]
[1733912670282,2.04,223.41,223.34,6.77109153]
[1733912670478,2.04,223.41,223.35,3.64716465]
[1733912670682,2.04,223.41,223.36,3.64716465]
[1733912670888,2.04,223.41,223.37,3.64716465]
[1733912671079,2.04,223.41,223.38,3.64716465]
[1733912671283,2.04,223.41,223.38,5.31681221]
[1733912672188,2.7583,223.5,223.39,3.64759764]
[1733912672488,6.77109153,223.44,223.38,5.31681221]
[1733912672781,2.04,223.43,223.39,3.64790676]
[1733912672986,4.2773,223.43,223.39,2.2376]
[1733912673188,2.04,223.43,223.38,5.31681221]
[1733912673387,2.04,223.43,223.39,3.64750287]
[1733912673688,2.04,223.43,223.38,5.31681221]
[1733912673689,2.2373,223.42,223.38,5.31681221]
[1733912673884,2.2373,223.42,223.39,3.64751024]
[1733912674188,2.2373,223.42,223.38,5.31681221]
[1733912674388,2.04,223.43,223.39,3.64757107]
[1733912674581,2.04,223.43,223.38,7.55451221]
[1733912674781,2.04,223.43,223.39,3.64743878]
[1733912674983,2.04,223.43,223.4,3.64743878]
[1733912675181,2.04,223.43,223.38,5.31681221]
[1733912675383,2.04,223.43,223.39,3.64743853]
[1733912675584,2.2373,223.42,223.39,2.2376]
[1733912676088,2.2373,223.42,223.38,5.31681221]
[1733912676291,2.2373,223.42,223.38,7.55451221]
[1733912676587,2.2373,223.42,223.39,3.64744861]
[1733912676892,2.2373,223.42,223.38,7.55451221]
[1733912677188,2.2373,223.42,223.39,3.64787733]
[1733912677391,4.2773,223.42,223.38,7.55451221]
[1733912677589,4.2773,223.42,223.39,3.64781841]
[1733912677789,4.2773,223.42,223.38,7.55451221]
[1733912677992,2.04,223.42,223.39,5.88534643]
[1733912678187,2.04,223.42,223.4,3.64739351]
[1733912678387,2.04,223.42,223.39,2.2375]
[1733912678684,2.04,223.42,223.41,2.2374]
[1733912678989,2.04,223.42,223.41,5.88661705]
[1733912680893,2.04,223.44,223.41,5.88661705]
[1733912681091,2.04,223.44,223.41,2.2374]
[1733912683193,4.2771,223.44,223.39,9.00859153]
[1733912683491,4.2771,223.44,223.4,3.64954295]
[1733912683691,4.2771,223.44,223.41,3.64954295]
[1733912683891,4.2771,223.44,223.39,9.00859153]
[1733912684095,4.2771,223.44,223.4,3.64959772]
[1733912684391,4.2771,223.44,223.41,3.64959772]
[1733912684591,4.2771,223.44,223.39,6.77109153]
[1733912684592,4.2771,223.44,223.4,2.2375]
[1733912684793,4.2771,223.44,223.41,3.64949571]
[1733912684988,4.2771,223.44,223.4,2.2375]
[1733912685183,4.2771,223.44,223.41,3.64948703]
[1733912685393,4.2771,223.44,223.4,2.2375]
[1733912685593,4.2771,223.44,223.41,3.64940033]
[1733912685792,4.2771,223.44,223.4,2.2375]
[1733912686094,4.2771,223.44,223.41,3.64926775]
[1733912686284,4.2771,223.44,223.39,9.00869153]
[1733912686592,4.2771,223.44,223.4,3.64949533]
[1733912686785,2.7583,223.5,223.41,3.64949533]
[1733912686985,1.3742,223.5,223.42,3.64958871]
[1733912687191,2.04,223.49,223.43,10.42068024]
[1733912687391,2.2367,223.48,223.44,5.88668871]
[1733912687594,2.2367,223.48,223.44,2.2371]
[1733912688092,2.2367,223.48,223.45,3.64869892]
[1733912688287,2.2367,223.48,223.44,2.2371]
[1733912688487,2.2367,223.48,223.45,3.64901235]
[1733912688684,2.2367,223.48,223.44,2.2371]
[1733912688888,2.2367,223.48,223.45,3.64901655]
[1733912689089,2.2367,223.48,223.44,2.2371]
[1733912689490,2.2367,223.48,223.45,3.64927591]
[1733912689691,2.2367,223.48,223.44,2.2371]
[1733912689894,2.2367,223.48,223.45,3.64901725]
[1733912690097,2.2367,223.48,223.44,2.2371]
[1733912690291,2.2367,223.48,223.45,3.64903331]
[1733912690594,2.2367,223.48,223.46,3.64903331]
[1733912690793,2.2367,223.48,223.44,2.2371]
[1733912690991,2.2367,223.48,223.45,3.65071052]
[1733912691196,2.2367,223.48,223.44,2.2371]
[1733912691399,2.2367,223.48,223.45,3.65052415]
[1733912691696,2.2367,223.48,223.43,2.2372]
[1733912691896,2.2367,223.48,223.44,3.65075588]
[1733912692196,2.2367,223.48,223.45,3.65075588]
[1733912692397,2.2367,223.48,223.43,2.2372]
[1733912692599,2.2367,223.48,223.44,3.65101076]
[1733912692793,2.2367,223.48,223.45,3.65101076]
[1733912692994,2.2367,223.48,223.46,3.65101076]
[1733912693203,2.2367,223.48,223.43,2.2372]
[1733912693397,2.2367,223.48,223.44,3.65073199]
[1733912693693,2.2367,223.48,223.45,3.65073199]
[1733912693896,2.2367,223.48,223.46,3.65074078]
[1733912694198,2.2367,223.48,223.44,2.2371]
[1733912694404,2.2367,223.48,223.45,3.65124332]
[1733912694696,2.2367,223.48,223.46,3.65124332]
[1733912694893,2.04,223.49,223.43,6.77109153]
[1733912695197,8.81109153,223.49,223.44,3.65120798]
[1733912695398,6.77109153,223.47,223.45,3.65120798]
[1733912695594,2.237,223.46,223.41,2.2374]
[1733912695996,2.237,223.46,223.42,3.65240508]
[1733912696188,2.237,223.46,223.43,3.65240508]
[1733912696388,2.237,223.46,223.44,3.65240508]
[1733912696593,2.237,223.46,223.45,3.65240508]
[1733912696790,2.2368,223.48,223.45,3.65240508]
[1733912696994,2.2368,223.48,223.46,3.65240508]
[1733912697190,2.2368,223.48,223.42,6.77109153]
[1733912697397,2.2368,223.48,223.43,3.65346616]
[1733912697595,2.2368,223.48,223.44,5.89056616]
[1733912697797,2.2368,223.48,223.45,3.65346616]
[1733912697997,2.2368,223.48,223.46,3.65346616]
[1733912698200,2.2368,223.48,223.44,2.2371]
[1733912698408,2.2368,223.48,223.45,3.65231145]
[1733912698597,2.2368,223.48,223.46,3.65231145]
[1733912698800,2.2368,223.48,223.44,2.2371]
[1733912699305,2.2368,223.48,223.45,3.65058577]
[1733912699496,2.2368,223.48,223.46,3.65058577]
[1733912699798,2.2368,223.48,223.44,2.2371]
[1733912699998,9.00789153,223.48,223.45,3.65073389]
[1733912700295,9.00789153,223.48,223.46,3.65073389]
[1733912700502,9.00789153,223.48,223.44,2.2371]
[1733912700699,6.77109153,223.48,223.45,3.65084482]
[1733912700898,6.77109153,223.48,223.46,3.65084482]
[1733912701098,6.77109153,223.48,223.43,2.2372]
[1733912701401,6.77109153,223.48,223.44,3.65132081]
[1733912701800,6.77109153,223.48,223.45,3.65132081]
[1733912701996,6.77109153,223.48,223.46,3.65132081]
[1733912702201,6.77109153,223.48,223.43,2.2372]
[1733912702403,6.77109153,223.48,223.44,3.65146563]
[1733912702595,2.2368,223.47,223.45,3.65146563]
[1733912702799,2.2368,223.47,223.46,3.65146563]
[1733912704504,2.2368,223.47,223.43,2.2372]
[1733912704698,2.2368,223.47,223.46,3.65101473]
[1733912707912,2.237,223.46,223.42,2.2373]
[1733912708209,6.77109153,223.48,223.43,5.88802512]
[1733912708409,6.77109153,223.48,223.44,3.65082512]
[1733912708611,2.2369,223.47,223.45,3.65082512]
[1733912708910,2.2369,223.47,223.46,3.65082512]
[1733912710112,2.2367,223.48,223.46,3.65082512]
[1733912710415,1.3801,223.56,223.47,3.65082512]
[1733912710605,1.3801,223.56,223.49,2.2366]
[1733912710606,2.04,223.51,223.49,2.2366]
[1733912711409,2.04,223.51,223.5,3.64908769]
[1733912712210,9.00739153,223.53,223.5,3.64908769]
[1733912712507,54.77282,223.52,223.47,6.77109153]
[1733912712707,54.77282,223.52,223.48,3.64693987]
[1733912712903,54.77282,223.52,223.5,2.2365]
[1733912713108,54.77282,223.52,223.47,6.77109153]
[1733912713308,54.77282,223.52,223.48,3.64550854]
[1733912713511,54.77282,223.52,223.49,3.64550854]
[1733912714416,54.77282,223.52,223.5,3.64550854]
[1733912714616,54.77282,223.52,223.51,3.64550854]
[1733912715406,54.77282,223.52,223.49,2.2365]
[1733912715713,54.77282,223.52,223.5,3.64181719]
[1733912715914,54.77282,223.52,223.49,2.2365]
[1733912716104,54.77282,223.52,223.5,3.64108105]
[1733912716314,54.77282,223.52,223.5,5.87758105]
[1733912716707,52.73282,223.52,223.5,3.64108105]
[1733912716911,52.73282,223.52,223.51,2.2364]
[1733912718117,52.73282,223.52,223.51,5.87578941]
[1733912718821,52.73282,223.52,223.51,2.2364]
[1733912719315,52.73282,223.52,223.51,5.87479852]
[1733912720320,52.73282,223.52,223.51,12.64589005]
[1733912720521,50.54022,223.52,223.51,12.64589005]
[1733912720720,2.04,223.58,223.55,2.236]
[1733912720922,2.04,223.58,223.51,10.40949005]
[1733912720923,2.04,223.58,223.51,6.77109153]
[1733912721121,2.04,223.58,223.52,3.63463924]
[1733912721316,6.77109153,223.59,223.53,3.63463924]
[1733912721522,6.77109153,223.59,223.54,3.63463924]
[1733912721725,6.77109153,223.59,223.55,3.63463924]
[1733912722022,6.77109153,223.59,223.53,6.77109153]
[1733912722219,6.77109153,223.59,223.56,3.63289789]
[1733912722414,6.77109153,223.59,223.53,6.77109153]
[1733912722617,6.77109153,223.59,223.56,2.2359]
[1733912724024,2.04,223.6,223.58,2.2356]
[1733912724424,2.04,223.6,223.55,6.77109153]
[1733912724624,8.81109153,223.62,223.55,6.77109153]
[1733912724826,8.81109153,223.62,223.56,3.63071404]
[1733912725126,8.81109153,223.62,223.58,2.2356]
[1733912725321,8.81109153,223.62,223.55,6.77109153]
[1733912725520,2.04,223.62,223.55,6.77109153]
[1733912725727,6.77109153,223.63,223.55,6.77109153]
[1733912725728,8.81109153,223.63,223.55,6.77109153]
[1733912725925,8.81109153,223.63,223.56,3.62923736]
[1733912726122,8.81109153,223.63,223.57,3.62923736]
[1733912726323,8.81109153,223.63,223.55,6.77109153]
[1733912726623,8.81109153,223.63,223.59,2.2355]
[1733912726821,8.81109153,223.63,223.55,6.77109153]
[1733912727017,6.77109153,223.61,223.56,3.62798652]
[1733912727219,6.77109153,223.59,223.54,2.236]
[1733912727418,2.04,223.58,223.54,2.236]
[1733912730631,4.2758,223.58,223.5,12.08379286]
[1733912730826,4.2758,223.58,223.51,3.62955721]
[1733912731025,4.2758,223.58,223.5,12.08379286]
[1733912731026,4.2758,223.58,223.52,3.62955721]
[1733912731222,4.2758,223.58,223.5,12.08379286]
[1733912731522,4.2758,223.58,223.51,3.62954309]
[1733912731723,4.2758,223.58,223.53,2.2362]
[1733912732128,2.04,223.58,223.5,12.08379286]
[1733912732431,2.04,223.58,223.52,6.77109153]
[1733912733732,2.2358,223.57,223.52,9.00739153]
[1733912734032,2.04,223.58,223.5,5.31270133]
[1733912734234,2.236,223.56,223.51,12.63806192]
[1733912734534,6.77109153,223.55,223.5,5.31270133]
[1733912734733,2.2363,223.53,223.51,3.63090733]
[1733912734933,2.04,223.52,223.5,5.31270133]
[1733912737634,2.236,223.56,223.51,2.2364]
[1733912737835,2.04,223.55,223.5,12.08379286]
[1733912739235,2.04,223.55,223.51,2.2364]
[1733912740541,8.81109153,223.55,223.51,2.2364]
[1733912742231,2.04,223.55,223.5,12.08379286]
[1733912742436,2.04,223.55,223.51,3.63094204]
[1733912742733,2.04,223.55,223.5,12.08379286]
[1733912743035,2.04,223.55,223.51,3.63082577]
[1733912743235,2.04,223.55,223.52,3.63026803]
[1733912743434,2.04,223.55,223.5,12.08379286]
[1733912743632,2.04,223.55,223.53,2.2362]
[1733912751045,2.04,223.55,223.5,5.31270133]
[1733912751247,6.77109153,223.54,223.51,3.63612401]
[1733912751452,6.77109153,223.54,223.5,5.31270133]
[1733912751453,6.77109153,223.54,223.52,3.63612401]
[1733912751746,9.00719153,223.54,223.5,5.31270133]
[1733912751946,9.00719153,223.54,223.51,3.63601984]
[1733912752239,9.00719153,223.54,223.52,3.63601984]
[1733912752444,9.00719153,223.54,223.5,5.31270133]
[1733912752743,9.00719153,223.54,223.51,3.63590683]
[1733912752945,9.00719153,223.54,223.52,3.63590683]
[1733912753145,9.00719153,223.54,223.5,5.31270133]
[1733912753345,9.00719153,223.54,223.51,3.63639731]
[1733912753645,9.00719153,223.54,223.52,3.63639731]
[1733912753846,9.00719153,223.54,223.5,5.31270133]
[1733912754047,2.04,223.55,223.51,3.63607774]
[1733912754346,2.04,223.55,223.52,3.63607774]
[1733912754546,2.04,223.55,223.53,3.63607774]
[1733912754742,2.04,223.55,223.5,5.31270133]
[1733912754743,2.04,223.55,223.51,2.2364]
[1733912754943,2.04,223.55,223.5,5.31270133]
[1733912755138,6.77109153,223.54,223.52,3.63677864]
[1733912755344,6.77109153,223.54,223.53,3.63677864]
[1733912756641,2.2362,223.54,223.53,3.63677864]
[1733912756839,9.00729153,223.54,223.53,3.63677864]
[1733912758149,9.00729153,223.54,223.53,3.63960792]
[1733912759549,6.77109153,223.54,223.53,3.63960792]
[1733912761047,9.00719153,223.54,223.53,3.63960792]
[1733912762844,2.2364,223.52,223.43,50.16300978]
[1733912763049,6.77109153,223.5,223.43,56.93410131]
[1733912763251,2.02,223.49,223.43,56.93410131]
[1733912763452,2.02,223.49,223.45,6.77109153]
[1733912763642,2.02,223.49,223.48,2.2367]
[1733912766652,2.02,223.49,223.46,2.2369]
[1733912767248,2.02,223.49,223.43,56.93410131]
[1733912767249,2.02,223.49,223.47,2.2368]
[1733912767752,2.02,223.49,223.48,2.2367]
[1733912769055,2.02,223.53,223.5,2.2365]
[1733912770947,2.02,223.53,223.47,6.77109153]
[1733912771150,2.02,223.59,223.56,2.2358]
[1733912776154,8.79109153,223.6,223.55,2.236]
[1733912776357,8.79109153,223.6,223.53,6.77109153]
[1733912776552,6.77109153,223.6,223.53,6.77109153]